bitfinex/quotes_ETHUSD_20250517
["timestamp","ask_amount","ask_price","bid_price","bid_amount"]
[1747490949849,4.05433231,2466.5,2466.3,0.7661]
[1747490950050,4.05465677,2466.3,2466.2,0.48477507]
[1747490950897,4.05465677,2466.3,2466.2,0.38730705]
[1747490951254,4.00465677,2466.3,2466.2,0.38730705]
[1747490951706,4.00465677,2466.3,2466.1,8.113]
[1747490952050,8.101,2466.4,2466.2,0.55]
[1747490952223,12.15517866,2466.6,2466.3,0.7598]
[1747490953087,4.05445187,2466.5,2466.3,0.7598]
[1747490953494,4.05482118,2466.2,2466.1,8.113]
[1747490954681,4.05469142,2466.3,2466.1,8.113]
[1747490954915,4.05453884,2466.4,2466.2,0.38791209]
[1747490955127,8.1,2466.6,2466.2,1.83648081]
[1747490955627,12.15422165,2466.6,2466.2,1.83648081]
[1747490956191,8.1,2466.6,2466.3,0.7598]
[1747490956420,4.0540357,2466.7,2466.3,0.7598]
[1747490956583,12.31731532,2467.0,2466.4,4.60448376]
[1747490956790,12.15286047,2466.8,2466.4,4.99239585]
[1747490957109,12.15286047,2466.8,2466.4,6.11143178]
[1747490957589,12.15286047,2466.8,2466.4,2.05694802]
[1747490957792,4.05401873,2466.7,2466.5,0.38791209]
[1747490957992,4.05416362,2466.6,2466.5,0.38791209]
[1747490958705,4.05409326,2466.7,2466.5,0.38791209]
[1747490958879,4.05416362,2466.6,2466.5,0.38791209]
[1747490959215,4.05431051,2466.6,2466.3,8.58377507]
[1747490959393,4.05439823,2466.5,2466.3,8.58377507]
[1747490959891,12.15286195,2466.8,2466.3,8.58377507]
[1747490960080,4.05417041,2466.6,2466.3,8.58377507]
[1747490960280,4.05406924,2466.7,2466.4,0.38818004]
[1747490960599,4.05406924,2466.7,2466.4,0.93818004]
[1747490960798,8.26370409,2467.0,2466.5,1.317]
[1747490961004,4.05367764,2466.9,2466.6,0.55]
[1747490961386,4.05351795,2467.0,2466.6,0.55]
[1747490961580,4.05351795,2467.0,2466.6,1.12596074]
[1747490961782,4.05351795,2467.0,2466.7,0.38818004]
[1747490962184,7.50600409,2467.4,2466.9,0.767]
[1747490962485,8.096,2467.2,2466.9,8.866]
[1747490962719,4.05308831,2467.3,2466.9,8.866]
[1747490962885,4.0531249,2467.3,2467.0,0.38818004]
[1747490963286,15.60200409,2467.4,2467.0,0.38818004]
[1747490963613,4.05330639,2467.2,2467.0,0.38818004]
[1747490963818,4.0532639,2467.2,2467.0,0.38818004]
[1747490964318,4.0532639,2467.2,2467.1,0.38818004]
[1747490966809,4.05350628,2467.0,2466.9,8.099]
[1747490967520,4.05377306,2466.9,2466.8,8.099]
[1747490968394,4.05359852,2467.0,2466.8,8.48676952]
[1747490969519,4.05340439,2467.1,2466.8,8.48676952]
[1747490969820,8.092,2467.3,2466.9,1.18426952]
[1747490970118,4.05330208,2467.2,2466.9,1.18426952]
[1747490970293,4.05335716,2467.1,2466.9,1.18426952]
[1747490970900,4.05325555,2467.2,2467.0,0.38776952]
[1747490971224,7.50600409,2467.4,2467.0,0.38776952]
[1747490971400,11.55894865,2467.4,2467.0,1.50135338]
[1747490971602,19.64994865,2467.4,2467.0,1.50135338]
[1747490971801,11.55894865,2467.4,2467.1,0.93776952]
[1747490972519,0.7699,2467.9,2467.4,0.55]
[1747490972725,4.05203966,2467.9,2467.6,0.55]
[1747490973224,4.05203966,2467.9,2467.7,0.38776952]
[1747490974121,4.05219223,2467.8,2467.7,0.38776952]
[1747490976531,4.05239303,2467.7,2467.5,8.098]
[1747490977815,4.0526849,2467.5,2467.4,8.097]
[1747490978206,4.05284915,2467.4,2467.3,0.48477507]
[1747490978401,4.05284915,2467.4,2467.3,8.097]
[1747490979427,4.05301341,2467.3,2467.2,9.13177507]
[1747490979735,4.05301341,2467.3,2467.2,0.48477507]
[1747490980928,4.05340665,2467.1,2467.0,8.097]
[1747490981600,8.27590409,2467.7,2467.0,9.04135]
[1747490981924,4.05277838,2467.5,2467.0,13.09484521]
[1747490982504,4.05277838,2467.5,2467.2,0.7965]
[1747490983521,4.05277838,2467.5,2467.3,0.38654714]
[1747490983722,11.55840216,2467.7,2467.4,0.55]
[1747490983723,7.50600409,2467.7,2467.4,0.55]
[1747490984020,4.05259033,2467.6,2467.4,0.55]
[1747490984406,4.05191318,2468.0,2467.4,0.55]
[1747490984607,4.05222106,2467.8,2467.5,0.7965]
[1747490984805,4.0521196,2467.9,2467.6,8.647]
[1747490985059,12.13493721,2468.0,2467.6,8.647]
[1747490985345,4.05227765,2467.8,2467.6,8.647]
[1747490985721,4.05210018,2467.9,2467.6,8.647]
[1747490987207,4.05210018,2467.9,2467.7,0.38654714]
[1747490987839,4.05162258,2468.2,2467.8,0.55]
[1747490988040,7.50600409,2468.4,2467.9,0.7779]
[1747490988341,4.05182038,2468.1,2467.9,0.7779]
[1747490988516,4.05162993,2468.2,2467.9,0.7779]
[1747490988717,4.05141789,2468.3,2468.0,0.55]
[1747490989122,4.05111939,2468.5,2468.0,4.60179112]
[1747490989442,12.13134609,2468.4,2468.0,0.55]
[1747490989615,4.05140691,2468.3,2468.1,8.081]
[1747490990208,4.0512768,2468.4,2468.1,8.081]
[1747490990535,4.05127781,2468.4,2468.2,0.3863139]
[1747490991448,4.05127781,2468.4,2468.1,8.081]
[1747490991626,4.05127781,2468.4,2468.1,8.92938179]
[1747490992249,4.05121558,2468.4,2468.1,8.92938179]
[1747490992444,4.05153553,2468.2,2467.9,1.36500661]
[1747490992648,4.05153553,2468.2,2468.0,8.63]
[1747490993025,8.079,2468.5,2467.9,1.36500661]
[1747490993235,8.079,2468.5,2467.7,1.04086421]
[1747490993236,4.05202804,2467.9,2467.7,8.56477507]
[1747490993443,4.05219223,2467.8,2467.7,0.48477507]
[1747490994149,0.8278,2468.4,2467.7,3.23741318]
[1747490994317,0.8278,2468.4,2467.9,0.7806]
[1747490994827,4.05163527,2468.2,2467.9,0.7806]
[1747490995740,4.05171429,2468.1,2467.9,0.7806]
[1747490995941,4.05169968,2468.1,2467.5,17.98577507]
[1747490996139,4.05222456,2467.8,2467.6,8.08]
[1747490996330,4.05235644,2467.7,2467.6,8.08]
[1747490997252,4.05252066,2467.6,2467.5,17.98577507]
[1747490997448,4.05252066,2467.6,2467.5,17.501]
[1747490997632,4.0526849,2467.5,2467.4,8.08]
[1747490998230,12.12722863,2467.8,2467.2,1.26537507]
[1747490998436,4.05295208,2467.4,2467.3,8.08]
[1747490998636,8.075,2467.8,2467.3,8.08]
[1747490998845,4.05284915,2467.4,2467.3,8.08]
[1747490999052,4.05284915,2467.4,2467.2,0.48477507]
[1747490999361,4.05284915,2467.4,2467.3,8.08]
[1747490999857,4.05253377,2467.6,2467.3,9.32324832]
[1747491000224,4.05253377,2467.6,2467.4,0.7853]
[1747491000425,12.12511388,2467.9,2467.5,0.55]
[1747491000754,4.05219289,2467.8,2467.6,0.53880814]
[1747491000950,4.05219289,2467.8,2467.5,0.55]
[1747491001152,4.05219289,2467.8,2467.7,0.38677081]
[1747491002956,4.05235644,2467.7,2467.6,0.38677081]
[1747491004718,4.0526849,2467.5,2467.4,0.48477507]
[1747491004925,12.12354191,2467.6,2467.4,1.24537507]
[1747491005225,4.05254191,2467.6,2467.4,1.24537507]
[1747491005427,4.0526849,2467.5,2467.4,1.24537507]
[1747491005724,4.05248435,2467.7,2467.4,1.24537507]
[1747491005925,4.0526849,2467.5,2467.4,1.7752178]
[1747491006126,4.0526849,2467.5,2467.4,0.48477507]
[1747491006330,4.05284915,2467.4,2467.2,0.48477507]
[1747491006526,4.05301341,2467.3,2467.2,0.48477507]
[1747491009262,4.84731341,2467.3,2467.2,0.48477507]
[1747491009560,0.7943,2467.3,2466.6,1.24537507]
[1747491009859,4.05337339,2467.1,2466.6,8.56577507]
[1747491010058,4.05367303,2466.9,2466.7,1.26201016]
[1747491010260,4.05367303,2466.9,2466.8,0.38700072]
[1747491010436,8.8633,2467.3,2466.8,0.38700072]
[1747491010641,4.05367059,2466.9,2466.8,8.46800072]
[1747491011060,4.05367059,2466.9,2466.8,0.38700072]
[1747491011252,4.84797059,2466.9,2466.8,0.38700072]
[1747491011838,4.84797059,2466.9,2466.4,0.7606]
[1747491011839,4.84798256,2466.9,2466.4,0.7606]
[1747491012041,4.05449237,2466.4,2466.3,0.48477507]
[1747491013974,12.91679237,2466.4,2466.3,0.48477507]
[1747491014147,4.05507266,2466.1,2465.8,0.7606]
[1747491014345,4.05507266,2466.1,2465.8,2.05043119]
[1747491014552,4.05518922,2466.0,2465.8,10.13243119]
[1747491014735,4.0550617,2466.1,2465.8,10.13243119]
[1747491015664,4.05506031,2466.1,2465.8,10.13243119]
[1747491016351,4.05457857,2466.4,2465.9,4.60520858]
[1747491016561,4.05457857,2466.4,2466.0,1.47376398]
[1747491016748,4.0548236,2466.2,2466.0,1.47376398]
[1747491016946,4.0547307,2466.3,2466.0,1.47376398]
[1747491017662,4.05473525,2466.3,2466.0,1.47376398]
[1747491018276,12.32721642,2466.7,2466.0,1.47376398]
[1747491018277,4.05439998,2466.5,2466.2,0.8299]
[1747491019135,4.0544975,2466.4,2466.2,0.8299]
[1747491019553,4.05465677,2466.3,2466.2,0.8299]
[1747491020484,4.05439857,2466.5,2466.2,0.8299]
[1747491020851,4.05465677,2466.3,2466.2,0.8299]
[1747491021054,4.05465677,2466.3,2466.2,8.8989]
[1747491021455,4.05465677,2466.3,2466.2,8.069]
[1747491022282,4.05488292,2466.2,2466.0,2.30366398]
[1747491022585,4.05523459,2466.0,2465.8,0.8299]
[1747491022786,4.05488304,2466.2,2465.8,8.8989]
[1747491022969,4.05508661,2466.1,2465.8,9.41947032]
[1747491023153,4.05522121,2466.0,2465.8,9.41947032]
[1747491025583,4.05522121,2466.0,2465.8,8.069]
[1747491026887,4.05522121,2466.0,2465.8,8.07]
[1747491027491,4.05475501,2466.3,2465.8,12.12541043]
[1747491027791,4.05506477,2466.1,2465.9,0.8071]
[1747491027986,4.05506477,2466.1,2465.6,4.05571903]
[1747491027987,4.05515004,2466.0,2465.6,0.8214]
[1747491028173,4.05531448,2465.9,2465.7,8.62]
[1747491028481,4.05531448,2465.9,2465.7,0.55]
[1747491028686,4.05531448,2465.9,2465.7,8.62]
[1747491028881,4.05547895,2465.8,2465.7,8.62]
[1747491029385,0.7994,2466.1,2465.7,8.62]
[1747491029386,4.055385,2465.9,2465.7,8.62]
[1747491029685,4.85448399,2466.1,2465.7,0.55]
[1747491029686,4.05522729,2466.0,2465.7,0.55]
[1747491030783,4.05490002,2466.2,2465.7,4.60556545]
[1747491030999,0.7994,2466.5,2465.7,5.95530189]
[1747491031170,8.063,2466.3,2465.7,5.95530189]
[1747491031511,4.05500475,2466.1,2465.7,5.95530189]
[1747491032193,4.05500475,2466.1,2465.8,0.38629919]
[1747491034015,4.05515004,2466.0,2465.9,0.38629919]
[1747491035090,4.05531448,2465.9,2465.8,0.38629919]
[1747491036093,4.0549092,2466.2,2465.8,0.38629919]
[1747491036281,4.0549092,2466.2,2465.9,0.7661]
[1747491037015,12.11573575,2466.3,2465.9,0.7661]
[1747491037186,4.05486697,2466.2,2465.9,0.7661]
[1747491038011,8.061,2466.3,2465.9,0.7661]
[1747491038012,4.05515004,2466.0,2465.9,0.7661]
[1747491038201,4.05531448,2465.9,2465.8,0.48477507]
[1747491038784,4.05515004,2466.0,2465.8,0.48477507]
[1747491038785,4.05524755,2466.0,2465.8,0.48477507]
[1747491039091,4.05524755,2466.0,2465.9,0.38780972]
[1747491041443,4.85384755,2466.0,2465.9,0.38780972]
[1747491042091,4.05564342,2465.7,2465.6,0.48477507]
[1747491043748,4.05597241,2465.5,2465.4,0.48477507]
[1747491044609,20.92557241,2465.5,2465.4,0.48477507]
[1747491046506,4.05616484,2465.4,2464.6,0.7545]
[1747491046705,4.05673051,2465.1,2464.6,0.7545]
[1747491046907,4.05673051,2465.1,2464.7,0.48119897]
[1747491047195,4.05696463,2464.9,2464.7,0.48119897]
[1747491047395,4.05696463,2464.9,2464.6,0.7545]
[1747491047595,4.05688116,2465.0,2464.6,0.7545]
[1747491047997,4.05704118,2464.9,2464.6,0.7545]
[1747491049432,4.05728891,2464.7,2464.6,0.7545]
[1747491049600,4.05745354,2464.6,2464.5,8.058]
[1747491049923,4.05745354,2464.6,2464.4,0.48477507]
[1747491049924,4.05761817,2464.5,2464.4,0.48477507]
[1747491051617,4.05761817,2464.5,2464.2,8.8862]
[1747491051941,4.05761817,2464.5,2464.2,10.23564619]
[1747491052102,4.05733693,2464.7,2464.2,14.2937211]
[1747491052103,12.11437612,2464.7,2464.2,14.2937211]
[1747491052301,12.11436726,2464.7,2464.2,14.2937211]
[1747491052940,4.05719637,2464.8,2464.3,4.60787677]
[1747491053512,4.05729538,2464.7,2464.3,0.55]
[1747491053733,4.05729538,2464.7,2464.3,2.44018882]
[1747491054114,4.057205,2464.8,2464.3,6.49808838]
[1747491054318,12.11300639,2464.9,2464.3,6.49808838]
[1747491054319,4.05729749,2464.7,2464.3,6.49808838]
[1747491054840,4.05729749,2464.7,2464.3,2.44018882]
[1747491055006,4.05729749,2464.7,2464.3,6.4981055]
[1747491055202,4.05752731,2464.6,2464.3,2.44018882]
[1747491055708,8.056,2464.9,2464.3,2.48076414]
[1747491055908,4.0571417,2464.8,2464.3,6.49805438]
[1747491056427,4.05687351,2465.0,2464.6,0.7567]
[1747491056644,4.05668713,2465.1,2464.7,0.55]
[1747491056840,4.05663056,2465.1,2464.7,8.609]
[1747491057043,4.05712431,2464.8,2464.7,8.609]
[1747491057612,4.05707608,2464.9,2464.7,8.609]
[1747491057813,4.05712431,2464.8,2464.7,8.609]
[1747491058013,4.05725692,2464.8,2464.6,8.06]
[1747491058513,4.05728891,2464.7,2464.5,8.8795]
[1747491058845,4.05719805,2464.8,2464.5,8.8795]
[1747491059152,4.0573857,2464.7,2464.5,8.8795]
[1747491059511,7.50600409,2465.2,2464.6,0.55]
[1747491059717,4.0569693,2464.9,2464.7,0.8195]
[1747491059952,4.05689072,2465.0,2464.7,0.8195]
[1747491060753,4.05696203,2464.9,2464.7,0.8195]
[1747491060929,4.05694719,2465.0,2464.7,0.8195]
[1747491061129,4.05697702,2464.9,2464.7,0.8195]
[1747491061563,4.05697702,2464.9,2464.7,8.8795]
[1747491062464,4.05688438,2465.0,2464.7,8.8795]
[1747491062667,4.05688438,2465.0,2464.7,10.27235297]
[1747491062866,4.05715903,2464.8,2464.6,0.55]
[1747491063517,0.8136,2465.1,2464.6,0.55]
[1747491063732,4.05728891,2464.7,2464.5,8.8498]
[1747491063947,4.05732326,2464.7,2464.3,0.7898]
[1747491064157,4.05787342,2464.4,2464.2,0.48477507]
[1747491064932,4.05762111,2464.5,2464.2,0.48477507]
[1747491065268,4.87097281,2464.7,2464.2,0.48477507]
[1747491065437,4.05719327,2464.8,2464.5,0.55]
[1747491065639,8.31960409,2465.2,2464.7,4.05719548]
[1747491065963,7.50600409,2465.8,2465.0,0.55]
[1747491066126,4.0561514,2465.4,2465.1,8.06]
[1747491066456,4.05630146,2465.3,2465.2,0.7898]
[1747491066652,4.05630146,2465.3,2464.7,0.7898]
[1747491066653,0.8136,2465.3,2464.7,0.7898]
[1747491066962,4.05720109,2464.8,2464.6,25.58]
[1747491067122,4.05701417,2464.9,2464.6,25.58]
[1747491067323,4.05719975,2464.8,2464.6,25.58]
[1747491067857,4.05728891,2464.7,2464.6,25.58]
[1747491068357,4.05721708,2464.8,2464.6,25.58]
[1747491069921,4.05701902,2464.9,2464.6,25.58]
[1747491070123,4.05719998,2464.8,2464.6,25.58]
[1747491070353,4.05704696,2464.9,2464.6,26.87693483]
[1747491071135,4.05714175,2464.8,2464.6,26.87693483]
[1747491071862,4.05728891,2464.7,2464.6,27.42693483]
[1747491072047,4.05666528,2465.1,2464.6,25.58]
[1747491072253,4.05728004,2464.8,2464.6,25.58]
[1747491072447,4.05728891,2464.7,2464.6,17.52]
[1747491072648,4.05760719,2464.6,2464.4,8.06]
[1747491072943,4.05764257,2464.5,2464.4,8.06]
[1747491073149,4.05794749,2464.3,2464.2,8.06]
[1747491073537,4.05785358,2464.4,2464.1,1.44130605]
[1747491073739,4.05785358,2464.4,2464.2,8.06]
[1747491073938,4.05768745,2464.5,2464.2,8.06]
[1747491074262,4.05811216,2464.2,2464.1,1.44130605]
[1747491074426,4.05811216,2464.2,2464.1,8.70180605]
[1747491075240,4.05802893,2464.3,2464.1,8.70180605]
[1747491075959,4.05802893,2464.3,2464.1,8.54569902]
[1747491076325,4.05802893,2464.3,2464.1,0.48569902]
[1747491076528,4.05802893,2464.3,2464.1,8.54569902]
[1747491076978,0.8306,2464.7,2464.1,10.0395455]
[1747491077141,4.05728288,2464.8,2464.3,4.05792907]
[1747491077466,4.05728288,2464.8,2464.4,0.55]
[1747491077766,11.56291986,2465.0,2464.5,0.7995]
[1747491077767,4.05731354,2464.7,2464.5,0.7995]
[1747491078466,4.05720965,2464.8,2464.5,0.7995]
[1747491078629,4.0570467,2464.9,2464.5,0.7995]
[1747491079030,4.0570467,2464.9,2464.6,8.598]
[1747491079426,4.0570467,2464.9,2464.6,9.99208913]
[1747491079929,4.0571992,2464.8,2464.6,9.99208913]
[1747491080131,4.05728891,2464.7,2464.6,8.048]
[1747491081969,4.05721461,2464.8,2464.6,8.048]
[1747491082465,4.05728891,2464.7,2464.6,8.048]
[1747491083967,4.05718472,2464.8,2464.6,8.048]
[1747491084153,4.0570299,2464.9,2464.6,8.048]
[1747491084656,4.05716776,2464.8,2464.6,8.048]
[1747491085155,4.05728891,2464.7,2464.6,8.048]
[1747491085359,7.50600409,2465.0,2464.6,8.9813199]
[1747491085672,7.50600409,2465.0,2464.6,13.03870387]
[1747491086165,11.56282077,2465.0,2464.7,0.48569902]
[1747491086371,4.05698578,2464.9,2464.7,0.48569902]
[1747491086585,11.56289507,2465.0,2464.7,0.48569902]
[1747491089470,4.05689098,2465.0,2464.7,0.48569902]
[1747491089666,4.05712431,2464.8,2464.7,0.48569902]
[1747491089873,4.05694049,2465.0,2464.7,0.48569902]
[1747491090734,4.05690646,2465.0,2464.6,8.53269902]
[1747491091069,4.05690646,2465.0,2464.6,11.14163595]
[1747491091266,4.05665462,2465.1,2464.7,4.05726319]
[1747491091472,4.05666812,2465.1,2464.7,4.05726319]
[1747491091631,14.58518324,2465.2,2464.8,1.3807]
[1747491091832,6.54418324,2465.2,2464.9,4.05688092]
[1747491093177,6.54418324,2465.2,2464.8,7.09571146]
[1747491093671,4.05632148,2465.3,2464.9,0.48569902]
[1747491096495,8.32480409,2465.8,2465.2,0.55]
[1747491096785,4.05598019,2465.5,2465.2,8.597]
[1747491099287,4.05588737,2465.6,2465.2,9.94543215]
[1747491099867,4.05588737,2465.6,2465.2,8.597]
[1747491101097,12.09270763,2465.7,2465.2,12.65337337]
[1747491101397,0.7979,2466.0,2465.4,4.60597989]
[1747491101652,8.30390409,2466.3,2465.7,4.84575872]
[1747491101769,4.05481205,2466.3,2465.8,12.69194472]
[1747491101969,4.05481205,2466.3,2465.8,12.65139299]
[1747491102362,4.05441559,2466.5,2466.0,4.60506591]
[1747491103299,4.0540843,2466.7,2466.2,4.0547145]
[1747491103687,4.0540843,2466.7,2466.3,8.045]
[1747491103863,8.034,2466.8,2466.3,8.045]
[1747491103864,4.05449237,2466.4,2466.3,8.045]
[1747491105207,0.8249,2466.9,2466.3,8.87795107]
[1747491105372,4.05428902,2466.6,2466.3,8.87795107]
[1747491105883,14.11269498,2467.0,2466.6,0.55]
[1747491106086,4.05398052,2466.8,2466.6,0.55]
[1747491106398,4.0537309,2466.9,2466.6,0.55]
[1747491106598,4.05388808,2466.8,2466.6,0.55]
[1747491106786,14.11260924,2467.0,2466.6,0.55]
[1747491106986,4.05384861,2466.8,2466.6,0.55]
[1747491107189,4.05375075,2466.9,2466.6,1.48141]
[1747491107368,0.792,2467.7,2466.8,0.55]
[1747491107568,4.05320622,2467.2,2466.8,8.581]
[1747491108198,4.05308546,2467.3,2466.8,12.63481298]
[1747491108496,4.05293101,2467.4,2467.0,0.8066]
[1747491108698,4.05293101,2467.4,2467.0,2.1507195]
[1747491108902,4.05275201,2467.5,2467.0,2.1507195]
[1747491109284,4.05287727,2467.4,2467.0,2.1507195]
[1747491109482,4.05303565,2467.3,2467.0,2.1507195]
[1747491110098,4.05291775,2467.4,2467.0,2.1507195]
[1747491110407,8.028,2467.5,2467.0,6.20409647]
[1747491110598,12.08076821,2467.5,2467.0,6.20409647]
[1747491110915,4.05276821,2467.5,2467.1,0.62040965]
[1747491111625,4.05286876,2467.4,2467.1,0.62040965]
[1747491112993,12.0806578,2467.6,2466.8,0.783]
[1747491112994,8.028,2467.6,2466.8,0.783]
[1747491113196,4.05344932,2467.1,2466.9,8.028]
[1747491113409,8.028,2467.6,2466.9,8.028]
[1747491113410,4.05252066,2467.6,2466.9,8.028]
[1747491113703,4.05293779,2467.4,2467.0,0.8811]
[1747491114105,4.05329149,2467.2,2467.0,0.8811]
[1747491114320,4.05307662,2467.3,2467.1,8.028]
[1747491117149,4.05301341,2467.3,2467.1,8.028]
[1747491118595,4.05301341,2467.3,2466.9,0.55]
[1747491118799,4.05301341,2467.3,2467.1,8.027]
[1747491119823,4.05358465,2467.0,2466.8,0.783]
[1747491120027,4.05357988,2467.0,2466.8,8.81]
[1747491121026,4.05337323,2467.1,2466.8,8.81]
[1747491121196,4.0531414,2467.3,2466.9,4.60364526]
[1747491121536,0.8308,2467.7,2467.1,4.60327239]
[1747491121759,4.05267556,2467.6,2467.2,0.783]
[1747491122061,4.05246225,2467.7,2467.3,8.027]
[1747491122232,0.8308,2468.1,2467.4,0.55]
[1747491122432,4.05178848,2468.1,2467.6,4.05237101]
[1747491122758,4.05188086,2468.0,2467.6,0.59052212]
[1747491122959,4.05184275,2468.1,2467.6,4.64294722]
[1747491123255,4.05218791,2467.9,2467.6,0.55]
[1747491123634,4.05195503,2468.0,2467.6,0.55]
[1747491124264,4.05195503,2468.0,2467.6,1.08857478]
[1747491124478,4.0522936,2467.8,2467.6,1.08857478]
[1747491124660,4.05210031,2467.9,2467.6,0.55]
[1747491124968,15.52500409,2468.2,2467.6,0.55]
[1747491125126,4.05194599,2468.0,2467.6,0.59052105]
[1747491125331,4.05221069,2467.8,2467.6,0.55]
[1747491125552,4.05219701,2467.8,2467.6,0.55]
[1747491125762,4.05213715,2467.9,2467.6,0.55]
[1747491126663,4.05186676,2468.0,2467.6,0.55]
[1747491126867,4.05193915,2468.0,2467.6,0.55]
[1747491127174,4.05205019,2467.9,2467.6,1.08858339]
[1747491127592,4.05191904,2468.0,2467.6,0.55]
[1747491127878,4.05219223,2467.8,2467.3,0.8249]
[1747491128036,4.05276797,2467.5,2467.3,8.8499]
[1747491128976,4.05276797,2467.5,2467.3,0.8249]
[1747491129173,4.05284915,2467.4,2467.3,8.025]
[1747491130674,4.05252066,2467.6,2467.3,8.025]
[1747491130973,0.821,2468.0,2467.4,1.3749]
[1747491131272,4.35858539,2468.7,2467.4,1.3749]
[1747491131273,0.821,2468.4,2467.8,0.55]
[1747491131473,4.05202804,2467.9,2467.8,0.55]
[1747491131679,4.05202804,2467.9,2467.8,0.93650295]
[1747491132188,4.05202804,2467.9,2467.8,0.38650295]
[1747491134956,4.05195308,2468.0,2467.8,0.38650295]
[1747491135159,0.821,2468.4,2467.9,0.8322]
[1747491135359,0.79,2468.7,2468.0,0.55]
[1747491135676,4.0513895,2468.3,2468.0,0.55]
[1747491135859,0.79,2468.7,2468.0,0.55]
[1747491136055,4.50488238,2469.3,2467.8,0.38650295]
[1747491136056,0.79,2469.2,2468.3,0.8322]
[1747491136290,8.011,2469.1,2468.4,0.55]
[1747491136490,4.05065568,2468.8,2468.4,0.55]
[1747491136694,4.50474895,2469.3,2468.4,1.13387476]
[1747491136905,0.45498889,2469.3,2468.8,4.60045188]
[1747491137103,0.45498889,2469.3,2468.7,0.8322]
[1747491137104,0.45498889,2469.3,2469.0,0.55]
[1747491137411,0.45498889,2469.3,2469.2,0.55]
[1747491138204,0.45498889,2469.3,2469.2,13.81859765]
[1747491138414,0.45498889,2469.3,2469.2,17.35951116]
[1747491138981,0.45498889,2469.3,2469.2,33.37651116]
[1747491139179,0.45498889,2469.3,2469.2,13.30961646]
[1747491139392,0.45498889,2469.3,2469.2,13.31861646]
[1747491140414,0.45498889,2469.3,2469.2,5.30961646]
[1747491140588,0.45498889,2469.3,2469.2,13.31861646]
[1747491141297,0.45498889,2469.3,2469.2,5.30961646]
[1747491141919,4.50471958,2469.3,2469.2,3.92741646]
[1747491142074,4.50471958,2469.3,2469.2,8.39350295]
[1747491142583,4.50471958,2469.3,2469.2,8.007]
[1747491142784,4.0498947,2469.2,2469.1,17.5]
[1747491143000,4.0498947,2469.2,2469.1,25.507]
[1747491143196,4.0498947,2469.2,2469.1,17.5]
[1747491143398,4.0498947,2469.2,2469.0,8.007]
[1747491143399,0.45498889,2469.3,2468.6,1.31349902]
[1747491143598,4.05071495,2468.7,2468.6,0.48569902]
[1747491145112,4.05104314,2468.5,2468.4,17.493]
[1747491145314,4.05120725,2468.4,2468.3,8.007]
[1747491145473,4.0511013,2468.5,2468.3,8.007]
[1747491146376,4.05120725,2468.4,2468.1,8.557]
[1747491146620,4.05120725,2468.4,2468.2,0.9870499]
[1747491147020,4.05137138,2468.3,2468.2,1.5370499]
[1747491147221,4.05126517,2468.4,2468.2,0.55]
[1747491148296,4.05174511,2468.1,2467.9,8.008]
[1747491148496,4.05161553,2468.2,2467.9,8.008]
[1747491148687,4.05161553,2468.2,2468.0,0.55]
[1747491149013,4.05161553,2468.2,2468.0,1.4058]
[1747491149423,4.05145615,2468.3,2468.0,1.4058]
[1747491150001,8.003,2468.5,2468.0,1.4058]
[1747491150213,4.05169968,2468.1,2468.0,0.55]
[1747491150730,4.05219223,2467.8,2467.7,17.493]
[1747491151047,4.05219223,2467.8,2467.7,18.043]
[1747491151544,4.05219223,2467.8,2467.7,17.493]
[1747491152230,4.05235644,2467.7,2467.6,9.04369902]
[1747491152756,4.05284915,2467.4,2467.3,0.48569902]
[1747491154119,4.05239659,2467.7,2467.3,0.48569902]
[1747491154459,7.50600409,2468.4,2467.6,8.0]
[1747491154738,4.05146204,2468.3,2467.9,0.55]
[1747491154931,4.05173864,2468.1,2467.9,0.55]
[1747491155451,4.05162315,2468.2,2467.9,0.55]
[1747491156209,4.0517278,2468.1,2467.9,1.48781]
[1747491156410,4.05186385,2468.0,2467.6,0.55]
[1747491156610,4.05186385,2468.0,2467.7,8.009]
[1747491157141,0.8283,2468.5,2467.8,0.55]
[1747491157321,4.05172878,2468.1,2467.8,0.55]
[1747491158447,12.05345006,2468.3,2467.8,0.55]
[1747491158643,12.05345006,2468.3,2467.9,1.26113525]
[1747491159239,4.05145006,2468.3,2467.9,1.26113525]
[1747491159551,4.05129551,2468.4,2468.0,1.3442]
[1747491159733,4.05111175,2468.5,2468.0,1.3442]
[1747491159936,4.05111175,2468.5,2468.0,5.39602654]
[1747491160247,4.05113141,2468.5,2468.2,0.55]
[1747491161021,4.05113141,2468.5,2468.2,8.559]
[1747491161416,4.05122711,2468.4,2468.2,8.559]
[1747491161656,4.05113141,2468.5,2468.2,8.559]
[1747491162007,4.05136427,2468.4,2468.2,8.559]
[1747491163139,4.05137138,2468.3,2468.2,8.559]
[1747491164153,4.05130288,2468.4,2468.2,8.559]
[1747491164524,4.05110046,2468.5,2468.2,8.559]
[1747491164735,4.05110046,2468.5,2468.2,10.00700274]
[1747491165134,4.05121458,2468.4,2468.2,10.00700274]
[1747491166040,4.05093505,2468.6,2468.2,10.00700274]
[1747491166358,4.0506938,2468.8,2468.2,6.04947567]
[1747491166521,8.8133,2469.0,2468.3,8.559]
[1747491166859,4.05083986,2468.7,2468.3,8.559]
[1747491167064,8.8133,2469.0,2468.1,0.8005]
[1747491167267,4.05120829,2468.4,2468.3,0.55]
[1747491167752,4.05111138,2468.5,2468.3,0.55]
[1747491168154,4.05111138,2468.5,2468.4,0.38589102]
[1747491169570,4.05104314,2468.5,2468.4,0.38589102]
[1747491171665,4.05096954,2468.6,2468.4,0.38589102]
[1747491171862,4.05078734,2468.7,2468.4,0.38589102]
[1747491172063,12.04678734,2468.7,2468.5,0.38589102]
[1747491172261,12.04678254,2468.7,2468.5,0.38589102]
[1747491173733,4.05087904,2468.6,2468.5,0.38589102]
[1747491173938,4.05087904,2468.6,2468.4,0.38589102]
[1747491174444,12.04538681,2468.9,2468.5,0.55]
[1747491174656,4.05062599,2468.8,2468.5,0.55]
[1747491174867,12.04547701,2468.9,2468.5,1.3095]
[1747491175039,4.05031797,2469.0,2468.5,5.36048724]
[1747491175241,4.05031797,2469.0,2468.7,0.55]
[1747491175242,4.05024147,2469.0,2468.7,0.55]
[1747491175769,4.05024147,2469.0,2468.8,0.38589102]